[Event "*** Titled Tuesday 3|2 Blitz"]
[Site "Chess.com"]
[Date "2016.08.02"]
[Round "2"]
[White "BillieKimbah"]
[Black "ShimanovAlex"]
[Result "0-1"]
[WhiteElo "2494"]
[BlackElo "2568"]
[TimeControl "180+2"]
[EndTime "11:25:49 PDT"]
[Termination "ShimanovAlex won by checkmate"]

1. Nf3 {[%clk 0:03:00.6]} 1... Nf6 {[%clk 0:02:50.6]} 2. g3 {[%clk 0:03:01.2]}
2... g6 {[%clk 0:02:51.1]} 3. Bg2 {[%clk 0:03:02.1]} 3... Bg7 {[%clk 0:02:52.1]}
4. O-O {[%clk 0:03:03.7]} 4... O-O {[%clk 0:02:53.3]} 5. d4 {[%clk 0:03:05.3]}
5... c5 {[%clk 0:02:52.3]} 6. dxc5 {[%clk 0:03:06.4]} 6... Na6 {[%clk
0:02:52.8]} 7. Be3 {[%clk 0:03:03.7]} 7... Ng4 {[%clk 0:02:50.1]} 8. Bd4 {[%clk
0:03:00.2]} 8... e5 {[%clk 0:02:38.8]} 9. Bc3 {[%clk 0:02:44.4]} 9... Qc7 {[%clk
0:02:30.5]} 10. b4 {[%clk 0:02:40.6]} 10... Rd8 {[%clk 0:02:07.6]} 11. Na3
{[%clk 0:02:37.9]} 11... d5 {[%clk 0:02:00.8]} 12. Nb5 {[%clk 0:02:32.2]} 12...
Qe7 {[%clk 0:02:01.4]} 13. h3 {[%clk 0:02:30.6]} 13... Nh6 {[%clk 0:02:00.6]}
14. Nd6 {[%clk 0:02:31]} 14... d4 {[%clk 0:02:00.5]} 15. Bd2 {[%clk 0:02:22.8]}
15... Nf5 {[%clk 0:02:01.1]} 16. Nxc8 {[%clk 0:02:13.4]} 16... Raxc8 {[%clk
0:02:01]} 17. g4 {[%clk 0:02:11.4]} 17... Nh4 {[%clk 0:01:58.4]} 18. Nxh4 {[%clk
0:02:08.9]} 18... Qxh4 {[%clk 0:01:59.3]} 19. f4 {[%clk 0:01:49.2]} 19... e4
{[%clk 0:01:44.3]} 20. Bxe4 {[%clk 0:01:20]} 20... Qxh3 {[%clk 0:01:43.1]} 21.
Bxb7 {[%clk 0:01:19.7]} 21... Qxg4+ {[%clk 0:01:41.1]} 22. Bg2 {[%clk
0:01:20.1]} 22... h5 {[%clk 0:01:34]} 23. Rb1 {[%clk 0:01:10.5]} 23... Nc7
{[%clk 0:01:32.6]} 24. e4 {[%clk 0:01:01.8]} 24... Qe6 {[%clk 0:01:21]} 25. b5
{[%clk 0:00:55.3]} 25... Qxa2 {[%clk 0:01:19.6]} 26. b6 {[%clk 0:00:55.6]} 26...
axb6 {[%clk 0:01:20.2]} 27. cxb6 {[%clk 0:00:57.1]} 27... Ne6 {[%clk 0:01:18.7]}
28. b7 {[%clk 0:00:55.9]} 28... Rb8 {[%clk 0:01:18.8]} 29. f5 {[%clk 0:00:54.3]}
29... Nc5 {[%clk 0:01:18.2]} 30. Bg5 {[%clk 0:00:48.8]} 30... Re8 {[%clk
0:00:48.2]} 31. fxg6 {[%clk 0:00:31.6]} 31... fxg6 {[%clk 0:00:48.8]} 32. Rb5
{[%clk 0:00:32]} 32... Qc4 {[%clk 0:00:45.6]} 33. Qb1 {[%clk 0:00:26.4]} 33...
Be5 {[%clk 0:00:35.8]} 34. Rb6 {[%clk 0:00:25.3]} 34... Ne6 {[%clk 0:00:25]} 35.
Bf6 {[%clk 0:00:23.6]} 35... d3 {[%clk 0:00:21.4]} 36. Bxe5 {[%clk 0:00:18.9]}
36... Qc5+ {[%clk 0:00:22.7]} 37. Kh1 {[%clk 0:00:19.8]} 37... Qxe5 {[%clk
0:00:24]} 38. cxd3 {[%clk 0:00:20.7]} 38... Kg7 {[%clk 0:00:21.5]} 39. Rb5
{[%clk 0:00:17.1]} 39... Qg3 {[%clk 0:00:21.7]} 40. Rd5 {[%clk 0:00:16.6]} 40...
Re7 {[%clk 0:00:22.5]} 41. Qb2+ {[%clk 0:00:17.1]} 41... Kh6 {[%clk 0:00:23.2]}
42. Qe5 {[%clk 0:00:18.3]} 42... Qxe5 {[%clk 0:00:23.3]} 43. Rxe5 {[%clk
0:00:19.5]} 43... Rbxb7 {[%clk 0:00:24.8]} 44. Rf6 {[%clk 0:00:20.2]} 44... Nd4
{[%clk 0:00:25]} 45. Rd5 {[%clk 0:00:20.4]} 45... Rbd7 {[%clk 0:00:25.4]} 46.
Rfd6 {[%clk 0:00:20.5]} 46... Rxd6 {[%clk 0:00:25.4]} 47. Rxd6 {[%clk
0:00:22.1]} 47... Ne2 {[%clk 0:00:27.1]} 48. Kh2 {[%clk 0:00:22]} 48... Kg5
{[%clk 0:00:27.4]} 49. d4 {[%clk 0:00:22.9]} 49... Nf4 {[%clk 0:00:29.1]} 50. e5
{[%clk 0:00:23.8]} 50... Ra7 {[%clk 0:00:30]} 51. Be4 {[%clk 0:00:19]} 51...
Ra2+ {[%clk 0:00:30.1]} 52. Kh1 {[%clk 0:00:18.8]} 52... Re2 {[%clk 0:00:29.1]}
53. Bf3 {[%clk 0:00:19.5]} 53... Re3 {[%clk 0:00:30.3]} 54. Bc6 {[%clk
0:00:14.8]} 54... Kg4 {[%clk 0:00:31]} 55. Kh2 {[%clk 0:00:08.4]} 55... Re2+
{[%clk 0:00:31.6]} 56. Kg1 {[%clk 0:00:09.6]} 56... g5 {[%clk 0:00:19.4]} 57.
Kf1 {[%clk 0:00:10.3]} 57... Kg3 {[%clk 0:00:19.9]} 58. Rf6 {[%clk 0:00:04]}
58... Re3 {[%clk 0:00:20.8]} 59. Bb7 {[%clk 0:00:02.9]} 59... Nd3 {[%clk
0:00:21.8]} 60. Kg1 {[%clk 0:00:03.4]} 60... Nf4 {[%clk 0:00:22]} 61. d5 {[%clk
0:00:03.1]} 61... Re1# {[%clk 0:00:22.4]} 0-1

[Event "*** Titled Tuesday 3|2 Blitz"]
[Site "Chess.com"]
[Date "2016.08.02"]
[Round "2"]
[White "Haridaskesavan"]
[Black "chorejason"]
[Result "1-0"]
[WhiteElo "2117"]
[BlackElo "2049"]
[TimeControl "180+2"]
[EndTime "11:26:33 PDT"]
[Termination "Haridaskesavan won by resignation"]

1. e4 {[%clk 0:03:01.9]} 1... c5 {[%clk 0:03:00.5]} 2. c3 {[%clk 0:02:55.6]}
2... Nf6 {[%clk 0:02:59.6]} 3. e5 {[%clk 0:02:55.8]} 3... Nd5 {[%clk 0:03:01]}
4. g3 {[%clk 0:02:56.4]} 4... d6 {[%clk 0:02:59.9]} 5. exd6 {[%clk 0:02:56.8]}
5... e6 {[%clk 0:03:00.1]} 6. Bg2 {[%clk 0:02:57.7]} 6... Bxd6 {[%clk 0:03:01]}
7. Ne2 {[%clk 0:02:57.6]} 7... O-O {[%clk 0:03:01.9]} 8. d4 {[%clk 0:02:58.7]}
8... Nc6 {[%clk 0:03:01.4]} 9. O-O {[%clk 0:02:59.5]} 9... Qc7 {[%clk
0:02:49.9]} 10. Na3 {[%clk 0:02:53.1]} 10... a6 {[%clk 0:02:41]} 11. Nc4 {[%clk
0:02:50.2]} 11... cxd4 {[%clk 0:02:36.5]} 12. Nxd6 {[%clk 0:02:48.6]} 12... Qxd6
{[%clk 0:02:32.7]} 13. Nxd4 {[%clk 0:02:49.7]} 13... Nxd4 {[%clk 0:01:58.1]} 14.
Qxd4 {[%clk 0:02:49.7]} 14... Qb6 {[%clk 0:01:33.4]} 15. Qxb6 {[%clk 0:02:45.1]}
15... Nxb6 {[%clk 0:01:34.1]} 16. Be3 {[%clk 0:02:44.5]} 16... Na4 {[%clk
0:01:33.7]} 17. Rab1 {[%clk 0:02:40.1]} 17... Rb8 {[%clk 0:01:24.8]} 18. Bf4
{[%clk 0:02:31.9]} 18... Ra8 {[%clk 0:01:23.1]} 19. Rfd1 {[%clk 0:02:19.8]}
19... Nb6 {[%clk 0:01:17.4]} 20. b3 {[%clk 0:02:14.4]} 20... f6 {[%clk
0:01:13.6]} 21. Bc7 {[%clk 0:02:10]} 21... Nd5 {[%clk 0:01:06.6]} 22. Bxd5
{[%clk 0:02:09.3]} 22... exd5 {[%clk 0:01:07.8]} 23. Rxd5 {[%clk 0:02:10.1]}
23... Be6 {[%clk 0:01:07.9]} 24. Rd6 {[%clk 0:02:07.6]} 24... Kf7 {[%clk
0:01:06.7]} 25. Re1 {[%clk 0:02:00.6]} 25... Bh3 {[%clk 0:01:07.5]} 26. Bb6
{[%clk 0:01:56.6]} 26... Rfe8 {[%clk 0:01:08.7]} 27. Red1 {[%clk 0:01:46.2]}
27... Re2 {[%clk 0:01:06.1]} 28. R6d2 {[%clk 0:01:45.4]} 28... Rae8 {[%clk
0:01:05.8]} 29. Be3 {[%clk 0:01:38.2]} 29... Rxd2 {[%clk 0:00:58.3]} 30. Rxd2
{[%clk 0:01:39.2]} 30... Rc8 {[%clk 0:00:57.4]} 31. c4 {[%clk 0:01:33.9]} 31...
b5 {[%clk 0:00:58.5]} 32. c5 {[%clk 0:01:34.6]} 32... Rc6 {[%clk 0:00:59.1]} 33.
f3 {[%clk 0:01:32.9]} 33... g6 {[%clk 0:00:57.8]} 34. Kf2 {[%clk 0:01:33.7]}
34... f5 {[%clk 0:00:59]} 35. b4 {[%clk 0:01:27.8]} 35... Ke6 {[%clk 0:00:57.5]}
36. Bf4 {[%clk 0:01:21.1]} 36... Ke7 {[%clk 0:00:46.8]} 37. Bg5+ {[%clk
0:01:09.4]} 37... Ke6 {[%clk 0:00:47.7]} 38. Rd8 {[%clk 0:01:02]} 38... Kf7
{[%clk 0:00:43.4]} 39. Ra8 {[%clk 0:00:51.3]} 39... Re6 {[%clk 0:00:36.3]} 40.
Ra7+ {[%clk 0:00:46.7]} 40... Kg8 {[%clk 0:00:37.5]} 41. Bf4 {[%clk 0:00:42.7]}
41... Rc6 {[%clk 0:00:19.3]} 42. Bh6 {[%clk 0:00:34.4]} 42... Rc8 {[%clk
0:00:16.8]} 43. Rg7+ {[%clk 0:00:33.7]} 43... Kh8 {[%clk 0:00:17.3]} 44. Ra7
{[%clk 0:00:34.3]} 44... Kg8 {[%clk 0:00:18.5]} 45. Rxa6 {[%clk 0:00:34.8]}
45... Kf7 {[%clk 0:00:19.5]} 46. Ra7+ {[%clk 0:00:34.5]} 46... Ke6 {[%clk
0:00:21]} 47. Rxh7 {[%clk 0:00:31.7]} 47... f4 {[%clk 0:00:22.4]} 48. Bxf4
{[%clk 0:00:31.3]} 48... Bf5 {[%clk 0:00:21.5]} 49. g4 {[%clk 0:00:30.9]} 49...
Bb1 {[%clk 0:00:21.5]} 50. Bd6 {[%clk 0:00:29]} 50... Bxa2 {[%clk 0:00:21.5]}
51. Ke3 {[%clk 0:00:24.5]} 51... Bb1 {[%clk 0:00:20.9]} 52. Kd4 {[%clk
0:00:21.8]} 52... g5 {[%clk 0:00:20.4]} 53. Re7+ {[%clk 0:00:21.5]} 53... Kf6
{[%clk 0:00:21.1]} 54. Re5 {[%clk 0:00:17.1]} 54... Rh8 {[%clk 0:00:21.7]} 55.
Re2 {[%clk 0:00:16.6]} 55... Rh3 {[%clk 0:00:22.3]} 56. Rf2 {[%clk 0:00:17.1]}
56... Ba2 {[%clk 0:00:22.2]} 57. c6 {[%clk 0:00:17.4]} 57... Be6 {[%clk
0:00:23]} 58. Kc5 {[%clk 0:00:16.6]} 58... Bc8 {[%clk 0:00:23.9]} 59. Kxb5
{[%clk 0:00:17]} 59... Rh7 {[%clk 0:00:24.7]} 60. Kc5 {[%clk 0:00:17.2]} 60...
Ra7 {[%clk 0:00:25.7]} 61. b5 {[%clk 0:00:17.7]} 61... Ra3 {[%clk 0:00:26.9]}
62. Kb6 {[%clk 0:00:17.7]} 62... Rb3 {[%clk 0:00:27.9]} 63. Rd2 {[%clk
0:00:17.3]} 63... Ke6 {[%clk 0:00:28.3]} 64. Bc5 {[%clk 0:00:17.4]} 64... Ke5
{[%clk 0:00:27.8]} 65. Bd6+ {[%clk 0:00:17.5]} 65... Ke6 {[%clk 0:00:28.8]} 66.
Bc5 {[%clk 0:00:18.3]} 66... Ke5 {[%clk 0:00:30.3]} 67. Rd8 {[%clk 0:00:18.3]}
67... Be6 {[%clk 0:00:31.5]} 68. Re8 {[%clk 0:00:18.9]} 68... Kf6 {[%clk
0:00:32.2]} 69. Bd4+ {[%clk 0:00:18.7]} 69... Kf7 {[%clk 0:00:33.2]} 70. Rb8
{[%clk 0:00:17.3]} 70... Bc4 {[%clk 0:00:34.6]} 71. Kc5 {[%clk 0:00:17.1]} 71...
Be2 {[%clk 0:00:34.2]} 72. c7 {[%clk 0:00:18.2]} 72... Bxf3 {[%clk 0:00:33.9]}
73. c8=Q {[%clk 0:00:19]} 73... Bxg4 {[%clk 0:00:35.5]} 74. Qxg4 {[%clk
0:00:19.1]} 1-0

[Event "*** Titled Tuesday 3|2 Blitz"]
[Site "Chess.com"]
[Date "2016.08.02"]
[Round "2"]
[White "GianmarcoVaR"]
[Black "Oleksandr_Bortnyk"]
[Result "1-0"]
[WhiteElo "2455"]
[BlackElo "2552"]
[TimeControl "180+2"]
[EndTime "11:26:43 PDT"]
[Termination "GianmarcoVaR won by resignation"]

1. d4 {[%clk 0:03:01.9]} 1... d6 {[%clk 0:02:59.6]} 2. c4 {[%clk 0:03:01.4]}
2... e5 {[%clk 0:02:58.8]} 3. g3 {[%clk 0:03:01.3]} 3... exd4 {[%clk 0:02:59.5]}
4. Qxd4 {[%clk 0:03:01.7]} 4... Nc6 {[%clk 0:03:00.7]} 5. Qe3+ {[%clk
0:03:02.5]} 5... Nge7 {[%clk 0:03:00.3]} 6. Bg2 {[%clk 0:03:03.5]} 6... Be6
{[%clk 0:02:58.7]} 7. b3 {[%clk 0:03:03]} 7... Nf5 {[%clk 0:02:59.7]} 8. Qd2
{[%clk 0:03:04]} 8... Be7 {[%clk 0:02:56.5]} 9. Bb2 {[%clk 0:03:04.5]} 9... O-O
{[%clk 0:02:54]} 10. Nc3 {[%clk 0:03:01.1]} 10... Bf6 {[%clk 0:02:54.3]} 11. Nh3
{[%clk 0:03:00.3]} 11... Re8 {[%clk 0:02:49.8]} 12. O-O {[%clk 0:03:00.6]} 12...
Nfd4 {[%clk 0:02:49.8]} 13. Nf4 {[%clk 0:02:59.5]} 13... Bg4 {[%clk 0:02:45.6]}
14. f3 {[%clk 0:02:50.1]} 14... Bf5 {[%clk 0:02:40.5]} 15. Rac1 {[%clk
0:02:40.2]} 15... Bg5 {[%clk 0:01:38.6]} 16. e3 {[%clk 0:02:40.6]} 16... Ne6
{[%clk 0:01:28.6]} 17. Nfd5 {[%clk 0:02:27.1]} 17... Nc5 {[%clk 0:01:25.2]} 18.
Ba1 {[%clk 0:01:48.7]} 18... a6 {[%clk 0:01:08.7]} 19. Rcd1 {[%clk 0:01:45.3]}
19... Bh6 {[%clk 0:01:02.1]} 20. Qf2 {[%clk 0:01:31.4]} 20... Nd3 {[%clk
0:00:50.8]} 21. Qe2 {[%clk 0:01:29.4]} 21... Nd4 {[%clk 0:00:50.5]} 22. Qd2
{[%clk 0:01:25.1]} 22... c6 {[%clk 0:00:51.6]} 23. Nf4 {[%clk 0:01:26.1]} 23...
Nxf4 {[%clk 0:00:45.9]} 24. exf4 {[%clk 0:00:51.8]} 24... Nc2 {[%clk 0:00:47]}
25. g4 {[%clk 0:00:45.5]} 25... Ne3 {[%clk 0:00:34.1]} 26. g5 {[%clk 0:00:32]}
26... Bxg5 {[%clk 0:00:32.8]} 27. fxg5 {[%clk 0:00:33.2]} 27... Qxg5 {[%clk
0:00:34.7]} 28. Ne4 {[%clk 0:00:31.4]} 28... Bxe4 {[%clk 0:00:25.3]} 29. fxe4
{[%clk 0:00:31.6]} 29... Rxe4 {[%clk 0:00:27]} 30. Rde1 {[%clk 0:00:24]} 30...
Rae8 {[%clk 0:00:22]} 31. Rf3 {[%clk 0:00:14.4]} 31... h6 {[%clk 0:00:17.7]} 32.
Rg3 {[%clk 0:00:10.9]} 32... Nxg2 {[%clk 0:00:18.4]} 33. Rxg5 {[%clk 0:00:06.7]}
33... Rxe1+ {[%clk 0:00:19.4]} 34. Kxg2 {[%clk 0:00:04.4]} 34... hxg5 {[%clk
0:00:18.3]} 35. Qxg5 {[%clk 0:00:04.9]} 35... Rxa1 {[%clk 0:00:18.3]} 36. Qd2
{[%clk 0:00:03.9]} 36... Rae1 {[%clk 0:00:18.3]} 37. Qxd6 {[%clk 0:00:04.6]}
37... R1e2+ {[%clk 0:00:19.1]} 38. Kf3 {[%clk 0:00:05.6]} 38... R8e3+ {[%clk
0:00:18.7]} 39. Kg4 {[%clk 0:00:05.1]} 39... Re6 {[%clk 0:00:16.6]} 40. Qb8+
{[%clk 0:00:04.8]} 40... Kh7 {[%clk 0:00:16]} 41. Qxb7 {[%clk 0:00:05.8]} 41...
Rf2 {[%clk 0:00:16.8]} 42. h4 {[%clk 0:00:04.9]} 42... Rg6+ {[%clk 0:00:17.1]}
43. Kh3 {[%clk 0:00:05.3]} 43... Rf3+ {[%clk 0:00:16.9]} 44. Kh2 {[%clk
0:00:06]} 44... Rf4 {[%clk 0:00:17.2]} 45. Qe7 {[%clk 0:00:06.7]} 45... f6
{[%clk 0:00:12]} 46. Qe1 {[%clk 0:00:05.1]} 46... Rgg4 {[%clk 0:00:12.9]} 47.
Qb1+ {[%clk 0:00:04.2]} 47... f5 {[%clk 0:00:13.8]} 48. Qd3 {[%clk 0:00:04]}
48... Rxh4+ {[%clk 0:00:14.6]} 49. Kg3 {[%clk 0:00:05.2]} 49... Rfg4+ {[%clk
0:00:16]} 50. Kf2 {[%clk 0:00:06.1]} 50... Rh2+ {[%clk 0:00:16.9]} 51. Kf1
{[%clk 0:00:07.3]} 51... Rh1+ {[%clk 0:00:13.5]} 52. Kf2 {[%clk 0:00:08.2]}
52... Rh2+ {[%clk 0:00:14.6]} 53. Kf1 {[%clk 0:00:09.5]} 53... g6 {[%clk
0:00:10.5]} 54. c5 {[%clk 0:00:08]} 54... Rh1+ {[%clk 0:00:10]} 55. Kf2 {[%clk
0:00:08.8]} 55... Rh2+ {[%clk 0:00:11.9]} 56. Kf1 {[%clk 0:00:10.1]} 56... Rxa2
{[%clk 0:00:13.5]} 57. Qd7+ {[%clk 0:00:08.9]} 57... Kh6 {[%clk 0:00:14.8]} 58.
Qxc6 {[%clk 0:00:09.6]} 58... Rf4+ {[%clk 0:00:15]} 59. Ke1 {[%clk 0:00:09.8]}
59... Rh4 {[%clk 0:00:15.4]} 60. Qf3 {[%clk 0:00:06.6]} 60... Rh1+ {[%clk
0:00:16.2]} 61. Qxh1+ {[%clk 0:00:07.2]} 61... Kg5 {[%clk 0:00:17.4]} 62. Qg1+
{[%clk 0:00:07.4]} 62... Kf4 {[%clk 0:00:17]} 63. Qd4+ {[%clk 0:00:08.2]} 63...
Kf3 {[%clk 0:00:17.7]} 64. c6 {[%clk 0:00:09.1]} 64... f4 {[%clk 0:00:17.5]} 65.
c7 {[%clk 0:00:09.6]} 65... Re2+ {[%clk 0:00:15.4]} 66. Kd1 {[%clk 0:00:10]}
66... Re8 {[%clk 0:00:15.3]} 67. Qc3+ {[%clk 0:00:09.4]} 67... Kg2 {[%clk
0:00:14.6]} 68. c8=Q {[%clk 0:00:10.5]} 68... Rxc8 {[%clk 0:00:15.6]} 69. Qxc8
{[%clk 0:00:11.5]} 69... Kg3 {[%clk 0:00:17.5]} 70. Qxa6 {[%clk 0:00:11.6]}
70... g5 {[%clk 0:00:18.8]} 71. Ke2 {[%clk 0:00:12.2]} 71... f3+ {[%clk
0:00:19.2]} 72. Kf1 {[%clk 0:00:13]} 72... g4 {[%clk 0:00:21.1]} 73. Qd6+ {[%clk
0:00:13.9]} 1-0

[Event "*** Titled Tuesday 3|2 Blitz"]
[Site "Chess.com"]
[Date "2016.08.02"]
[Round "2"]
[White "brauliocuarta"]
[Black "ecwinslow"]
[Result "0-1"]
[WhiteElo "2026"]
[BlackElo "2016"]
[TimeControl "180+2"]
[EndTime "11:26:43 PDT"]
[Termination "ecwinslow won by resignation"]

1. d4 {[%clk 0:03:01.9]} 1... Nf6 {[%clk 0:02:58.4]} 2. c4 {[%clk 0:03:01.5]}
2... g6 {[%clk 0:02:57.5]} 3. Nc3 {[%clk 0:03:02.2]} 3... Bg7 {[%clk 0:02:55.6]}
4. e4 {[%clk 0:03:01.4]} 4... d6 {[%clk 0:02:56.5]} 5. f4 {[%clk 0:03:01.9]}
5... O-O {[%clk 0:02:56.9]} 6. Nf3 {[%clk 0:02:58.6]} 6... Na6 {[%clk 0:02:56]}
7. Be2 {[%clk 0:02:58.4]} 7... e5 {[%clk 0:02:56.4]} 8. fxe5 {[%clk 0:02:58.6]}
8... dxe5 {[%clk 0:02:50.9]} 9. d5 {[%clk 0:02:59.7]} 9... Bg4 {[%clk
0:02:33.9]} 10. O-O {[%clk 0:02:41.9]} 10... Bxf3 {[%clk 0:02:31.9]} 11. Bxf3
{[%clk 0:02:36.3]} 11... Ne8 {[%clk 0:02:26.5]} 12. Be3 {[%clk 0:02:26.9]} 12...
c5 {[%clk 0:02:26]} 13. dxc6 {[%clk 0:02:16.3]} 13... bxc6 {[%clk 0:02:26.5]}
14. Qa4 {[%clk 0:02:10.5]} 14... Qc8 {[%clk 0:02:17.1]} 15. Rac1 {[%clk
0:01:58.4]} 15... Qb7 {[%clk 0:02:09.2]} 16. Rfd1 {[%clk 0:01:53.9]} 16... Nec7
{[%clk 0:02:08.6]} 17. Rd7 {[%clk 0:01:40.6]} 17... Rad8 {[%clk 0:02:06.3]} 18.
Rcd1 {[%clk 0:01:38.4]} 18... Rxd7 {[%clk 0:01:59.3]} 19. Rxd7 {[%clk
0:01:40.3]} 19... Qxb2 {[%clk 0:01:58.1]} 20. Ne2 {[%clk 0:01:20.1]} 20... Rb8
{[%clk 0:01:38.8]} 21. Qxc6 {[%clk 0:01:12.5]} 21... Qb7 {[%clk 0:01:03.2]} 22.
Qxb7 {[%clk 0:01:00.6]} 22... Rxb7 {[%clk 0:01:03.3]} 23. Rd8+ {[%clk
0:01:01.9]} 23... Bf8 {[%clk 0:01:00.1]} 24. Bh6 {[%clk 0:00:58.6]} 24... Ne6
{[%clk 0:01:00.5]} 25. Rc8 {[%clk 0:00:48.4]} 25... Rc7 {[%clk 0:00:57.3]} 26.
Ra8 {[%clk 0:00:45.1]} 26... Rxc4 {[%clk 0:00:53.2]} 27. Bg4 {[%clk 0:00:46.1]}
27... Nac7 {[%clk 0:00:50.4]} 28. Rc8 {[%clk 0:00:44.8]} 28... Rxe4 {[%clk
0:00:47.1]} 29. h3 {[%clk 0:00:37.7]} 29... f5 {[%clk 0:00:41.1]} 30. Bf3 {[%clk
0:00:38.7]} 30... Ra4 {[%clk 0:00:40.5]} 31. Nc3 {[%clk 0:00:39]} 31... Ra5
{[%clk 0:00:35]} 32. a4 {[%clk 0:00:33]} 32... e4 {[%clk 0:00:28.1]} 33. Be2
{[%clk 0:00:31]} 33... Rc5 {[%clk 0:00:27]} 34. Nd1 {[%clk 0:00:24.6]} 34... Kf7
{[%clk 0:00:27.1]} 35. Be3 {[%clk 0:00:23.5]} 35... Rc2 {[%clk 0:00:25.7]} 36.
Kf1 {[%clk 0:00:23]} 36... Bc5 {[%clk 0:00:25.9]} 37. Bxc5 {[%clk 0:00:21.7]}
37... Rxc5 {[%clk 0:00:26.5]} 38. Ne3 {[%clk 0:00:23.1]} 38... Ke7 {[%clk
0:00:25.1]} 39. Bc4 {[%clk 0:00:23.7]} 39... Kd7 {[%clk 0:00:25]} 40. Rh8 {[%clk
0:00:23.1]} 40... h5 {[%clk 0:00:25.6]} 41. Rh6 {[%clk 0:00:22.5]} 41... Nf4
{[%clk 0:00:25.3]} 42. g3 {[%clk 0:00:20.3]} 42... Nxh3 {[%clk 0:00:22.5]} 43.
Rxg6 {[%clk 0:00:21.4]} 43... a5 {[%clk 0:00:19.1]} 44. Rh6 {[%clk 0:00:21.5]}
44... Ng5 {[%clk 0:00:18.8]} 45. Rxh5 {[%clk 0:00:22.1]} 45... Nce6 {[%clk
0:00:18.7]} 46. Rh8 {[%clk 0:00:18.8]} 46... Kd6 {[%clk 0:00:18.4]} 47. Ra8
{[%clk 0:00:18.5]} 47... Ke5 {[%clk 0:00:18.3]} 48. Ra6 {[%clk 0:00:18.3]} 48...
Nd4 {[%clk 0:00:18.3]} 49. Rg6 {[%clk 0:00:17.5]} 49... Ngf3 {[%clk 0:00:18.5]}
50. g4 {[%clk 0:00:17.4]} 50... Nd2+ {[%clk 0:00:17.8]} 51. Kf2 {[%clk
0:00:14.9]} 51... Nxc4 {[%clk 0:00:18.1]} 52. Nxc4+ {[%clk 0:00:12.8]} 52...
Rxc4 {[%clk 0:00:18.6]} 53. gxf5 {[%clk 0:00:14.7]} 53... Kxf5 {[%clk
0:00:18.7]} 54. Rh6 {[%clk 0:00:14.7]} 54... Kf4 {[%clk 0:00:19.2]} 55. Rh4+
{[%clk 0:00:13.5]} 55... Ke5 {[%clk 0:00:19.1]} 56. Rh5+ {[%clk 0:00:14.6]}
56... Nf5 {[%clk 0:00:19.5]} 57. Rh8 {[%clk 0:00:14.9]} 57... Rc2+ {[%clk
0:00:20.3]} 58. Ke1 {[%clk 0:00:15.4]} 58... Kf4 {[%clk 0:00:21.2]} 59. Re8
{[%clk 0:00:13.8]} 59... Ra2 {[%clk 0:00:21.2]} 60. Ra8 {[%clk 0:00:13.3]} 60...
Rxa4 {[%clk 0:00:20.9]} 61. Rf8 {[%clk 0:00:12.9]} 61... Ra2 {[%clk 0:00:21.1]}
62. Re8 {[%clk 0:00:14]} 62... Ke3 {[%clk 0:00:13.8]} 63. Kd1 {[%clk 0:00:13.3]}
63... Nd4 {[%clk 0:00:12.6]} 64. Kc1 {[%clk 0:00:12.3]} 64... Kd3 {[%clk
0:00:13.1]} 65. Rd8 {[%clk 0:00:11.6]} 65... Rc2+ {[%clk 0:00:13.4]} 66. Kd1
{[%clk 0:00:10]} 66... Rb2 {[%clk 0:00:13.3]} 67. Kc1 {[%clk 0:00:09.1]} 67...
Rc2+ {[%clk 0:00:13.6]} 68. Kd1 {[%clk 0:00:09.9]} 68... Rh2 {[%clk 0:00:14]}
69. Kc1 {[%clk 0:00:10.3]} 69... e3 {[%clk 0:00:14.6]} 70. Rd5 {[%clk 0:00:09]}
70... e2 {[%clk 0:00:15.1]} 71. Re5 {[%clk 0:00:06.8]} 71... Rh1+ {[%clk
0:00:14.8]} 72. Kb2 {[%clk 0:00:07.8]} 72... e1=Q {[%clk 0:00:13.9]} 73. Rxe1
{[%clk 0:00:08]} 73... Rxe1 {[%clk 0:00:15.1]} 74. Ka3 {[%clk 0:00:09.6]} 74...
Rb1 {[%clk 0:00:15.5]} 75. Ka4 {[%clk 0:00:10.5]} 75... Kc4 {[%clk 0:00:16.1]}
76. Kxa5 {[%clk 0:00:11.4]} 76... Kc5 {[%clk 0:00:16.3]} 77. Ka6 {[%clk
0:00:12.3]} 0-1